bitfinex-derivatives/quotes_ETHF0:USTF0_20250530
["timestamp","ask_amount","ask_price","bid_price","bid_amount"]
[1748628445811,1.2357,2555.6,2555.2,4.057]
[1748628446012,2.01815,2555.6,2555.5,0.78247]
[1748628446311,0.6242,2555.9,2555.8,0.78238]
[1748628446615,0.78233,2556.0,2555.9,0.78235]
[1748628446911,0.78238,2555.8,2555.7,3.2078]
[1748628447114,0.78238,2555.8,2555.7,4.83938]
[1748628447511,0.78238,2555.8,2555.7,4.83109495]
[1748628447711,0.78236,2555.9,2555.8,0.78235]
[1748628447918,5.16331,2556.4,2555.7,7.2648]
[1748628448116,4.5415,2556.4,2555.7,7.2648]
[1748628448321,0.7823,2556.1,2556.0,0.78229]
[1748628448910,0.78233,2556.0,2555.9,0.78233]
[1748628449108,1.95557,2556.3,2555.5,1.95617]
[1748628449314,0.78236,2555.9,2555.8,0.78235]
[1748628449614,1.3337,2556.2,2555.6,6.01209]
[1748628449813,0.78235,2556.0,2555.9,0.78233]
[1748628450418,0.78238,2555.9,2555.8,0.78236]
[1748628451220,0.78234,2556.0,2555.9,0.78232]
[1748628451517,0.78234,2556.0,2555.9,4.83832]
[1748628451919,0.78229,2556.1,2556.0,0.78229]
[1748628452317,0.78228,2556.2,2556.1,0.78226]
[1748628452921,0.78231,2556.1,2556.0,0.78229]
[1748628453620,0.78228,2556.2,2556.1,0.78226]
[1748628454721,1.2806,2556.3,2556.2,0.78226]
[1748628454915,0.78222,2556.4,2556.3,0.78221]
[1748628455622,0.78224,2556.3,2556.2,0.78223]
[1748628455824,0.78222,2556.4,2556.3,0.78221]
[1748628456021,0.78226,2556.2,2556.1,3.99006]
[1748628456215,3.2078,2557.3,2556.1,5.16349]
[1748628456422,3.96289,2557.2,2556.5,3.2078]
[1748628456622,1.95496,2557.1,2556.6,4.055]
[1748628456823,0.7821,2556.7,2556.6,4.8371]
[1748628457026,0.78213,2556.6,2556.5,3.2078]
[1748628457217,0.78213,2556.6,2556.5,7.2628]
[1748628457422,1.9552,2556.8,2556.4,0.78805061]
[1748628457423,0.78217,2556.5,2556.4,0.00587061]
[1748628457623,2.01897,2556.5,2556.4,0.00587061]
[1748628459517,7.01897,2556.5,2556.4,0.00587061]
[1748628460933,2.01897,2556.5,2556.4,0.00587061]
[1748628466125,7.01897,2556.5,2556.4,0.00587061]
[1748628466326,7.01897,2556.5,2556.4,6.1e-07]
[1748628467230,7.63157,2556.5,2556.4,6.1e-07]
[1748628468527,11.69357,2556.5,2556.4,6.1e-07]
[1748628468835,7.63157,2556.5,2556.4,6.1e-07]
[1748628469029,2.63157,2556.5,2556.4,6.1e-07]
[1748628469832,7.63157,2556.5,2556.4,6.1e-07]
[1748628471031,0.78217,2556.5,2556.4,6.1e-07]
[1748628471830,0.97727,2556.5,2556.4,6.1e-07]
[1748628477044,5.97727,2556.5,2556.4,6.1e-07]
[1748628477446,1.95642,2555.2,2554.2,7.74285384]
[1748628477633,3.2078,2554.3,2554.1,7.74285384]
[1748628477942,3.2078,2554.6,2554.1,11.80485384]
[1748628478339,3.99642061,2554.6,2554.1,11.81072445]
[1748628478535,3.21367061,2554.6,2554.1,11.81072445]
[1748628478739,0.78281,2554.5,2554.1,4.06787061]
[1748628478939,3.99644061,2554.6,2554.4,0.78279]
[1748628479134,3.21367061,2554.6,2554.5,0.78278]
[1748628479341,3.21367061,2554.6,2554.5,4.062]
[1748628479543,3.21367061,2554.6,2554.5,4.84478]
[1748628479739,3.99642061,2554.6,2554.5,4.062]
[1748628482435,0.78281,2554.4,2554.3,1.9407]
[1748628482636,0.78281,2554.4,2554.3,6.0027]
[1748628483243,0.78284,2554.3,2554.2,3.2078]
[1748628483444,0.78287,2554.2,2554.1,0.00587061]
[1748628483849,2.01337,2554.2,2554.1,0.00587061]
[1748628484250,3.21367061,2554.6,2554.1,0.00587061]
[1748628484452,0.78285,2554.3,2554.1,4.06887061]
[1748628484661,0.78285,2554.3,2554.2,1.3594]
[1748628485457,3.21367061,2554.6,2554.3,0.78282]
[1748628485661,0.78278,2554.5,2554.4,1.3594]
[1748628487358,3.99644061,2554.6,2554.4,1.3594]
[1748628487559,0.78278,2554.5,2554.4,1.3594]
[1748628487758,3.99643061,2554.6,2554.4,2.1422]
[1748628487958,3.21367061,2554.6,2554.4,1.3594]
[1748628488155,3.21367061,2554.6,2554.5,4.84578]
[1748628488355,3.21367061,2554.6,2554.5,0.78278]
[1748628488660,0.78281,2554.4,2554.3,0.633]
[1748628489856,0.78287,2554.2,2554.1,0.00587061]
[1748628490662,2.06677,2554.2,2554.1,0.00587061]
[1748628494567,0.78287,2554.2,2554.1,0.00587061]
[1748628495669,2.12857,2554.2,2554.1,0.00587061]
[1748628499165,0.78287,2554.2,2554.1,0.00587061]
[1748628499370,0.78287,2554.2,2554.1,0.78877061]
[1748628499673,0.78287,2554.2,2554.1,0.00587061]
[1748628500272,0.78285,2554.4,2554.3,0.7828]
[1748628500476,3.40907061,2554.6,2554.3,0.7828]
[1748628500477,0.7828,2554.5,2554.4,0.78278]
[1748628500673,0.7828,2554.5,2554.4,6.22631]
[1748628501580,0.7828,2554.5,2554.4,4.15]
[1748628501777,0.78281,2554.4,2554.3,0.78283]
[1748628502078,0.78279,2554.5,2554.3,5.4435]
[1748628502278,0.78279,2554.5,2554.4,0.78278]
[1748628502477,0.78279,2554.5,2554.4,2.07628]
[1748628502973,0.20127061,2554.6,2554.5,0.78278]
[1748628503281,0.20127061,2554.6,2554.5,7.08908]
[1748628503483,3.2078,2555.2,2554.7,1.9568]
[1748628503673,0.78262,2555.1,2555.0,0.7826]
[1748628503980,0.78263,2555.0,2554.9,1.44234]
[1748628504181,0.78263,2555.0,2554.9,6.116]
[1748628504383,0.7828,2554.5,2554.3,3.2078]
[1748628504581,0.7828,2554.5,2554.4,4.15]
[1748628504776,0.7828,2554.5,2554.4,4.93281]
[1748628505480,0.7828,2554.5,2554.4,4.15]
[1748628506477,0.7828,2554.5,2554.4,4.93281]
[1748628507379,0.7828,2554.5,2554.4,4.15]
[1748628507579,0.7828,2554.5,2554.4,4.93281]
[1748628508085,0.7828,2554.5,2554.4,4.15]
[1748628510681,0.78277,2554.6,2554.5,0.78275]
[1748628510885,0.7827,2554.9,2554.8,0.78266]
[1748628511080,0.7827,2554.9,2554.8,4.149]
[1748628511577,3.9905,2554.9,2554.8,4.149]
[1748628515281,0.78275,2554.6,2554.5,4.149]
[1748628515787,0.78275,2554.6,2554.5,4.93178]
[1748628515989,0.78272,2554.8,2554.7,0.78269]
[1748628516393,0.78272,2554.7,2554.6,2.11142]
[1748628517095,0.7827,2554.8,2554.7,0.78269]
[1748628517489,0.7827,2554.8,2554.7,1.41589]
[1748628518196,0.78269,2554.8,2554.7,1.41589]
[1748628519190,0.78269,2554.8,2554.7,0.6332]
[1748628519596,0.78269,2554.8,2554.7,1.41592]
[1748628520191,0.78269,2554.8,2554.7,0.6332]
[1748628520397,0.78281,2554.4,2554.3,3.2078]
[1748628520695,0.78281,2554.4,2554.3,7.9772]
[1748628520895,0.78281,2554.4,2554.3,8.76004]
[1748628521091,0.78272,2554.8,2554.7,0.78269]
[1748628521496,0.78275,2554.6,2554.5,1.3384]
[1748628521700,0.78275,2554.6,2554.5,4.93178]
[1748628521998,0.78275,2554.6,2554.5,4.149]
[1748628522385,0.78275,2554.6,2554.5,4.93178]
[1748628522799,0.78275,2554.6,2554.5,0.78278]
[1748628523101,2.10212,2554.8,2554.3,7.12367]
[1748628523296,0.78276,2554.7,2554.6,0.78272]
[1748628523598,0.78278,2554.6,2554.5,0.78276]
[1748628523796,0.78278,2554.6,2554.5,4.93176]
[1748628524302,0.78278,2554.6,2554.5,4.149]
[1748628524598,0.78278,2554.5,2554.4,0.7828]
[1748628526200,0.78281,2554.4,2554.3,1.40323]
[1748628526401,2.02211,2554.4,2554.3,1.40323]
[1748628528401,0.6491,2554.7,2554.3,0.6204]
[1748628528607,0.78278,2554.6,2554.5,0.78275]
[1748628531490,1.3604,2554.7,2554.3,1.9261]
[1748628531695,0.78281,2554.5,2554.4,0.78278]
[1748628531896,0.78281,2554.5,2554.4,2.07778]
[1748628532802,0.78275,2554.7,2554.6,0.78271]
[1748628533000,3.2078,2555.2,2554.7,1.9568]
[1748628533308,0.78264,2555.1,2555.0,0.7826]
[1748628533498,0.78264,2555.1,2555.0,4.9006]
[1748628533899,1.2603,2555.3,2555.0,4.118]
[1748628534200,0.78259,2555.2,2555.1,0.78255]
[1748628534905,0.7826,2555.1,2555.0,6.13763]
[1748628536007,0.78255,2555.3,2555.2,0.78256]
[1748628537609,3.99034,2555.4,2555.3,0.78253]
[1748628538315,3.2078,2555.4,2555.3,0.78253]
[1748628538803,1.2615,2555.9,2555.8,0.78238]
[1748628539210,0.78238,2555.8,2555.7,4.89939]
[1748628539401,3.99018,2555.8,2555.7,4.117]
[1748628539712,0.78238,2555.8,2555.7,4.117]
[1748628540209,3.2078,2555.8,2555.6,0.00587061]
[1748628540411,2.78641,2555.7,2555.6,0.00587061]
[1748628540909,3.45321,2555.7,2555.6,0.78831061]
[1748628541111,3.45321,2555.7,2555.6,0.00587061]
[1748628542211,1.3294,2555.7,2555.6,0.78831061]
[1748628542406,3.2078,2556.1,2555.6,0.00587061]
[1748628542611,0.78241,2555.8,2555.7,0.78237]
[1748628542814,0.78241,2555.8,2555.7,4.117]
[1748628543309,0.78238,2555.9,2555.7,4.117]
[1748628543509,0.78238,2555.9,2555.8,0.78235]
[1748628544012,0.78235,2556.0,2555.9,0.78232]
[1748628545310,3.99012,2556.1,2556.0,0.78232]
[1748628545509,0.7822,2556.5,2556.4,0.78217]
[1748628545711,0.78223,2556.4,2556.3,0.7822]
[1748628545906,1.316,2556.4,2556.3,0.7822]
[1748628546211,0.6751,2556.9,2556.8,0.78207]
[1748628546514,4.5238,2557.0,2556.7,4.116]
[1748628546715,0.78207,2556.9,2556.8,0.78206]
[1748628547015,4.5238,2557.0,2556.9,0.78204]
[1748628547219,5.30581,2557.0,2556.9,0.78204]
[1748628547415,4.5238,2557.0,2556.9,0.78204]
[1748628547817,0.78207,2556.8,2556.7,4.116]
[1748628549120,0.78206,2556.9,2556.7,4.116]
[1748628549319,0.78206,2556.9,2556.8,0.78205]
[1748628549514,0.78208,2556.8,2556.7,4.89808]
[1748628549813,0.78208,2556.9,2556.8,0.78204]
[1748628550210,4.5238,2557.0,2556.7,4.116]
[1748628550417,0.78206,2556.9,2556.8,2.08674]
[1748628550623,4.5238,2557.0,2556.9,0.78204]
[1748628550822,0.78204,2556.9,2556.8,1.3047]
[1748628551018,0.78204,2556.9,2556.8,2.08678]
[1748628551427,0.78204,2556.9,2556.8,1.3047]
[1748628552327,0.78204,2556.9,2556.8,2.08678]
[1748628552518,0.78204,2556.9,2556.8,1.3047]
[1748628553117,4.5238,2557.0,2556.9,0.78204]
[1748628553325,0.78193,2557.3,2556.8,6.46765]
[1748628553624,3.2078,2557.6,2556.8,4.5125]
[1748628553825,1.2465,2557.5,2556.9,0.00587061]
[1748628554021,0.78197,2557.2,2557.0,0.78199]
[1748628554215,0.78197,2557.2,2557.1,4.89698]
[1748628554424,2.5546,2557.5,2557.1,4.115]
[1748628555023,0.78195,2557.2,2557.1,4.115]
[1748628555219,2.5546,2557.5,2557.2,0.78195]
[1748628555416,2.5546,2557.5,2557.2,0.78192]
[1748628555622,0.78195,2557.2,2557.1,4.115]
[1748628555831,2.5546,2557.5,2557.1,4.115]
[1748628556027,0.78192,2557.3,2557.1,4.115]
[1748628556230,0.78192,2557.3,2557.1,4.89697]
[1748628556424,0.78195,2557.2,2557.1,4.115]
[1748628556621,0.78195,2557.2,2557.1,4.89698]
[1748628556822,0.78195,2557.2,2557.1,4.115]
[1748628557829,0.78201,2557.0,2556.9,0.00587061]
[1748628558025,3.98981,2557.0,2556.9,0.00587061]
[1748628559830,3.98981,2557.0,2556.5,3.2078]
[1748628559831,0.78214,2556.6,2556.5,4.097]
[1748628560221,3.98991,2556.7,2556.5,4.097]
[1748628560421,0.8796,2556.8,2556.5,4.097]
[1748628560730,0.8796,2556.8,2556.7,0.78211]
[1748628561122,0.8796,2556.8,2556.4,0.66257061]
[1748628561123,0.78214,2556.7,2556.6,0.78212]
[1748628561322,0.78214,2556.7,2556.6,4.87914]
[1748628561929,0.97724,2556.7,2556.6,4.097]
[1748628562430,0.97724,2556.7,2556.6,4.87914]
[1748628562632,0.1951,2556.7,2556.6,4.87914]
[1748628562828,0.1951,2556.7,2556.6,9.87914]
[1748628563427,0.1951,2556.7,2556.6,4.87914]
[1748628563631,0.00587061,2556.9,2556.6,4.097]
[1748628563834,0.00587061,2556.9,2556.8,0.78208]
[1748628564030,0.00587061,2556.9,2556.8,2.06278]
[1748628565829,0.00587061,2556.9,2556.8,4.87808]
[1748628566230,0.78791061,2556.9,2556.8,4.87808]
[1748628566431,0.78213,2556.7,2556.6,0.78211]
[1748628566630,0.78213,2556.7,2556.6,4.87811]
[1748628567131,1.4061,2556.8,2556.7,0.78211]
[1748628567332,0.624,2556.8,2556.7,0.78211]
[1748628567533,0.78211,2556.7,2556.6,4.87812]
[1748628567735,0.624,2556.8,2556.6,4.096]
[1748628567931,0.78211,2556.7,2556.6,4.87812]
[1748628568136,0.624,2556.8,2556.7,0.78211]
[1748628568431,0.00587061,2556.9,2556.8,0.78208]
[1748628568631,0.78791061,2556.9,2556.8,0.78208]
[1748628568835,0.7821,2556.8,2556.7,0.78208]
[1748628569036,0.78793061,2556.9,2556.8,0.78208]
[1748628569340,0.00587061,2556.9,2556.8,0.78208]
[1748628570341,0.00587061,2556.9,2556.8,2.11718]
[1748628570738,0.00587061,2556.9,2556.8,4.87808]
[1748628571041,0.00587061,2556.9,2556.8,6.21318]
[1748628572139,0.00587061,2556.9,2556.8,4.87808]
[1748628572340,0.00587061,2556.9,2556.5,3.2078]
[1748628572637,0.78211,2556.7,2556.6,4.87813]
[1748628572835,0.78211,2556.7,2556.6,4.096]
[1748628573040,0.78211,2556.7,2556.6,4.87814]
[1748628573238,3.21367061,2556.9,2556.6,11.05132]
[1748628573442,0.00587061,2556.9,2556.8,0.78208]
[1748628575340,0.00587061,2556.9,2556.8,4.87808]
[1748628575543,0.78791061,2556.9,2556.8,4.096]
[1748628576139,0.78791061,2556.9,2556.8,4.87808]
[1748628577742,0.00587061,2556.9,2556.8,4.87808]
[1748628578343,0.78791061,2556.9,2556.8,4.87808]
[1748628578946,0.00587061,2556.9,2556.8,4.87808]
[1748628583144,0.00587061,2556.9,2556.8,0.78208]
[1748628583341,0.78791061,2556.9,2556.8,4.87808]
[1748628583544,0.78791061,2556.9,2556.8,4.096]
[1748628583743,0.78791061,2556.9,2556.8,4.87808]
[1748628584153,0.78208,2556.8,2556.7,0.78209]
[1748628584454,0.78208,2556.8,2556.7,4.87809]
[1748628584657,1.29817061,2556.9,2556.8,0.78208]
[1748628584954,2.08021061,2556.9,2556.8,0.78208]
[1748628585453,0.78208,2556.8,2556.7,4.87808]
[1748628585656,2.79688,2556.8,2556.7,4.87808]
[1748628589159,2.0148,2556.8,2556.7,4.87808]
[1748628589345,1.3421,2556.8,2556.7,4.87808]
[1748628589554,0.00587061,2556.9,2556.8,0.78208]
[1748628589956,1.31137061,2556.9,2556.8,0.78208]
[1748628592258,0.00587061,2556.9,2556.8,0.78208]
[1748628594057,1.27437061,2556.9,2556.8,4.89408]
[1748628595255,1.95377,2558.7,2557.1,3.2078]
[1748628595554,0.6218,2558.2,2558.1,0.78167]
[1748628595856,1.40345,2558.2,2558.1,7.3198]
[1748628596659,0.6218,2558.2,2558.1,8.10148]
[1748628597061,1.40345,2558.2,2558.1,7.3198]
[1748628597359,1.40345,2558.2,2558.1,8.10148]
[1748628597559,0.6218,2558.2,2558.1,8.10148]
[1748628598259,3.2078,2558.9,2558.6,0.78151]
[1748628598565,0.7815,2558.7,2558.5,0.78154]
[1748628598756,2.5102,2558.8,2558.4,3.2078]
[1748628599059,0.78156,2558.5,2558.4,8.10039]
[1748628599249,0.78156,2558.5,2558.4,8.10038]
[1748628599449,0.78156,2558.5,2558.4,7.3188]
[1748628599656,0.78156,2558.5,2558.4,8.10039]
[1748628600053,2.5102,2558.8,2558.4,7.3188]
[1748628600256,2.5102,2558.8,2558.4,3.2078]
[1748628600459,0.78156,2558.5,2558.4,3.2078]
[1748628601161,2.04905,2558.6,2558.5,0.78156]
[1748628601461,1.2675,2558.6,2558.5,0.78156]
[1748628601863,1.2582,2558.8,2558.7,0.78149]
[1748628602054,1.2582,2558.8,2558.7,3.98929]
[1748628602456,5.16079,2559.7,2558.9,1.95353]
[1748628602762,0.6255,2559.2,2559.1,3.98917]
[1748628604360,1.9325,2559.2,2559.1,3.98917]
[1748628604657,1.9325,2559.2,2559.1,3.2078]
[1748628604862,2.71384,2559.2,2559.1,3.98917]
[1748628605062,0.6255,2559.2,2559.1,3.98917]
[1748628605360,0.78132,2559.3,2559.1,3.2078]
[1748628605563,0.6539,2559.5,2559.2,1.3376]
[1748628605763,0.78131,2559.3,2559.2,1.3376]
[1748628605961,0.78131,2559.3,2559.2,5.4476]
[1748628606465,0.78131,2559.3,2559.2,4.11]
[1748628606661,0.78131,2559.3,2559.2,4.89134]
[1748628606857,0.78134,2559.2,2559.1,3.2078]
[1748628607054,2.70504,2559.2,2559.1,3.2078]
[1748628608063,0.78137,2559.1,2559.0,0.00587061]
[1748628608263,2.08677,2559.1,2559.0,0.00587061]
[1748628608974,0.78146,2558.8,2558.7,3.2078]
[1748628609368,0.78156,2558.5,2558.4,7.3178]
[1748628609773,0.78156,2558.5,2558.4,4.11]
[1748628610067,0.78165,2558.2,2558.1,7.3178]
[1748628612269,5.78165,2558.2,2558.1,3.2078]
[1748628613374,0.78165,2558.2,2558.1,3.2078]
[1748628613574,0.78164,2558.3,2558.2,0.78162]
[1748628614074,0.78165,2558.2,2558.1,3.2078]
[1748628614275,1.33037061,2558.4,2558.1,3.2078]
[1748628614474,0.78165,2558.2,2558.1,3.98944]
[1748628614674,0.00587061,2558.4,2558.1,3.2078]
[1748628614977,0.78164,2558.3,2558.2,2.05623]
[1748628616779,0.78165,2558.2,2558.1,3.98946]
[1748628616986,0.78165,2558.2,2558.1,8.09946]
[1748628617578,0.00587061,2558.4,2558.1,7.3178]
[1748628617773,0.78748061,2558.4,2558.3,0.78162]
[1748628618078,0.78165,2558.2,2558.1,8.09946]
[1748628618274,0.78165,2558.2,2558.1,4.11]
[1748628618474,0.78171,2558.0,2557.9,0.00587061]
[1748628619175,2.03701,2558.0,2557.9,0.00587061]
[1748628620077,7.03701,2558.0,2557.9,0.00587061]
[1748628620382,10.24481,2558.0,2557.9,6.1e-07]
[1748628623677,14.36581,2558.0,2557.9,6.1e-07]
[1748628627382,9.36581,2558.0,2557.9,6.1e-07]
[1748628628581,0.78171,2558.0,2557.9,6.1e-07]
[1748628629586,0.78171,2558.0,2557.9,1.25940061]
[1748628630085,0.78171,2558.0,2557.9,6.1e-07]
[1748628631086,0.78171,2558.0,2557.9,1.26120061]
[1748628632890,0.97691,2558.0,2557.9,1.26120061]
[1748628633093,0.97691,2558.0,2557.9,6.1e-07]
[1748628633692,2.32661,2558.0,2557.9,6.1e-07]
[1748628637196,6.44861,2558.0,2557.9,6.1e-07]
[1748628637895,12.07431,2558.0,2557.9,6.1e-07]
[1748628638396,7.07431,2558.0,2557.9,6.1e-07]
[1748628645802,2.95231,2558.0,2557.9,6.1e-07]
[1748628646206,2.32661,2558.0,2557.9,6.1e-07]
[1748628646703,0.97691,2558.0,2557.9,6.1e-07]
[1748628647909,0.97691,2558.0,2557.9,1.31940061]
[1748628648307,0.00587061,2558.4,2557.9,13.62520061]
[1748628648502,0.00587061,2558.4,2558.3,0.78162]
[1748628648698,0.00587061,2558.4,2558.3,2.67792]
[1748628649011,0.78746061,2558.4,2558.3,8.30472]
[1748628649201,0.00587061,2558.4,2558.3,8.30472]
[1748628650209,0.00587061,2558.4,2558.3,12.40272]
[1748628650605,1.95356,2559.0,2558.3,11.6211]
[1748628650815,0.78146,2558.8,2558.7,3.2078]
[1748628653314,0.78146,2558.8,2558.7,3.98929]
[1748628653510,0.00587,2559.0,2558.8,0.78145]
[1748628653814,0.78727,2559.0,2558.9,0.6765]
[1748628657930,0.00587,2559.0,2558.9,6.45793]
[1748628658725,0.78727,2559.0,2558.9,0.6765]
[1748628659120,0.78143,2558.9,2558.8,0.6558]
[1748628661722,0.78143,2558.9,2558.8,1.43726]
[1748628662025,0.78143,2558.9,2558.8,0.6558]
[1748628662725,0.78156,2558.5,2558.4,7.9641]
[1748628663027,0.78156,2558.5,2558.4,3.8671]
[1748628663927,0.78156,2558.5,2558.4,3.2078]
[1748628665228,0.78156,2558.5,2558.4,3.98939]
[1748628665522,0.78156,2558.5,2558.4,3.2078]
[1748628667227,0.78156,2558.5,2558.4,3.98939]
[1748628667430,0.78156,2558.5,2558.4,3.2078]
[1748628667829,0.78162,2558.3,2558.2,0.78163]
[1748628668024,0.78162,2558.3,2558.2,3.98943]
[1748628668929,0.78162,2558.3,2558.2,3.2078]
[1748628669229,0.00587,2559.0,2558.3,1.95405]
[1748628669426,0.78146,2558.9,2558.8,3.98924]
[1748628669731,0.78146,2558.9,2558.8,3.2078]
[1748628670231,0.78146,2558.9,2558.8,3.8655]
[1748628670630,0.78146,2558.9,2558.8,5.1382]
[1748628671130,0.78146,2558.9,2558.8,5.91966]
[1748628674433,0.78146,2558.9,2558.8,5.1382]
[1748628674634,0.78146,2558.9,2558.8,3.8655]
[1748628676244,1.95378,2558.7,2558.4,5.1796]
[1748628676536,0.78171,2558.0,2557.9,6.1e-07]
[1748628677645,0.7817,2558.1,2558.0,0.78169]
[1748628677837,0.7817,2558.1,2558.0,1.271]
[1748628678339,0.78171,2558.0,2557.9,0.67950061]
[1748628678638,2.01121,2558.0,2557.9,6.1e-07]
[1748628681846,0.78171,2558.1,2557.9,6.1e-07]
[1748628682047,0.78164,2558.3,2558.2,0.78161]
[1748628682251,0.78161,2558.4,2558.3,0.78159]
[1748628682543,0.78161,2558.4,2558.3,1.2539]
[1748628683356,0.00587,2559.0,2558.3,6.2539]
[1748628683647,0.78144,2558.9,2558.8,3.2078]
[1748628684346,0.78156,2558.5,2558.4,4.63299]
[1748628684543,0.78156,2558.5,2558.4,3.8514]
[1748628685250,0.78156,2558.5,2558.4,4.63299]
[1748628685549,0.78156,2558.5,2558.4,3.8514]
[1748628685744,0.78156,2558.5,2558.4,4.63299]
[1748628687750,0.78156,2558.5,2558.4,3.8514]
[1748628688046,0.78156,2558.5,2558.4,3.2078]
[1748628688447,0.78165,2558.2,2558.1,3.2078]
[1748628689749,0.78163,2558.3,2558.2,0.78162]
[1748628689947,0.78163,2558.3,2558.2,2.07622]
[1748628690652,0.78165,2558.2,2558.1,3.98948]
[1748628691846,0.78165,2558.3,2558.2,0.78161]
[1748628692140,0.78165,2558.3,2558.2,2.01261]
[1748628692342,0.78156,2558.6,2558.5,0.78153]
[1748628692548,0.78156,2558.5,2558.4,3.98936]
[1748628692755,0.78156,2558.5,2558.4,3.2078]
[1748628693245,0.78168,2558.1,2558.0,8.1242]
[1748628693646,0.78168,2558.1,2558.0,3.8832]
[1748628693845,0.78168,2558.1,2558.0,4.66491]
[1748628694045,0.78168,2558.1,2558.0,3.8832]
[1748628694248,0.78872925,2558.1,2558.0,3.2078]
[1748628694450,0.78872925,2558.1,2557.9,4.24100061]
[1748628694451,0.78171,2558.0,2557.9,6.1e-07]
[1748628694748,2.11051,2558.0,2557.9,6.1e-07]
[1748628694953,7.11051,2558.0,2557.9,6.1e-07]
[1748628696447,2.11051,2558.0,2557.9,6.1e-07]
[1748628697056,2.30581,2558.0,2557.9,6.1e-07]
[1748628701855,0.97701,2558.0,2557.9,6.1e-07]
[1748628702851,0.97701,2558.0,2557.9,1.35250061]
[1748628704258,0.97701,2558.0,2557.9,6.1e-07]
[1748628704759,2.30401,2558.0,2557.9,6.1e-07]
[1748628707853,0.97701,2558.0,2557.9,6.1e-07]
[1748628708456,0.97701,2558.0,2557.9,0.64470061]
[1748628709460,0.97701,2558.0,2557.9,1.89430061]
[1748628709963,0.97701,2558.0,2557.9,0.64470061]
[1748628711055,0.97701,2558.0,2557.9,6.1e-07]
[1748628713262,0.97701,2558.0,2557.9,1.22570061]
[1748628713866,0.97701,2558.0,2557.9,2.00744061]
[1748628714061,0.1953,2558.0,2557.9,11.20944061]
[1748628714363,0.00704925,2558.1,2558.0,0.78171]
[1748628714557,0.78872925,2558.1,2558.0,5.21521]
[1748628714758,0.78872925,2558.1,2558.0,10.21521]
[1748628715762,0.78872925,2558.1,2558.0,5.21521]
[1748628715965,0.78872925,2558.1,2558.0,4.4335]
[1748628718865,0.78872925,2558.1,2558.0,5.21521]
[1748628719862,0.00704925,2558.1,2558.0,5.21521]
[1748628720269,0.78872925,2558.1,2558.0,5.21521]
[1748628720667,0.00704925,2558.1,2558.0,5.21521]
[1748628723763,0.78147,2558.9,2558.8,0.78144]
[1748628724060,0.78147,2558.9,2558.8,3.2078]
[1748628724252,0.78147,2558.9,2558.8,3.98927]
[1748628724464,0.00587,2559.0,2558.9,0.78144]
[1748628724856,0.78728,2559.0,2558.9,0.78144]
[1748628725066,0.78728,2559.0,2558.9,2.12824]
[1748628725469,0.00587,2559.0,2558.9,2.12824]
[1748628725773,0.78131,2559.4,2559.3,0.7813]
[1748628725965,0.78131,2559.4,2559.3,3.9891]
[1748628726361,0.78131,2559.4,2559.3,3.2078]
[1748628727167,0.78132,2559.3,2559.2,0.6647]
[1748628727772,0.78138,2559.1,2559.0,7.4088]
[1748628729771,0.78138,2559.1,2559.0,8.6839]
[1748628729972,0.78138,2559.1,2559.0,7.4088]
[1748628730269,0.78138,2559.1,2559.0,3.2078]
[1748628730467,0.78147,2558.8,2558.7,7.4088]
[1748628730665,0.78147,2558.8,2558.7,8.1903]
[1748628731474,0.78146,2558.9,2558.8,0.78144]
[1748628731774,0.78147,2558.8,2558.7,8.19028]
[1748628732072,0.78147,2558.9,2558.8,0.78144]
[1748628732367,0.78142,2559.1,2559.0,0.78138]
[1748628732572,0.78137,2559.2,2559.1,0.78135]
[1748628732874,0.78137,2559.2,2559.1,2.70705]
[1748628734271,0.78124,2559.7,2559.6,0.7812]
[1748628734871,0.78116,2559.9,2559.8,0.78114]
[1748628735062,2.5511,2560.1,2559.8,0.78114]
[1748628735063,0.78114,2560.0,2559.9,0.78112]
[1748628735267,0.78114,2559.9,2559.8,3.98895]
[1748628735565,0.78113,2560.0,2559.9,0.78111]
[1748628736473,0.78113,2560.0,2559.9,2.12661]
[1748628736773,0.78113,2560.0,2559.9,2.12664]
[1748628737672,3.2078,2561.0,2559.9,10.5455]
[1748628737864,0.78092,2560.7,2560.6,0.78091]
[1748628738171,2.548,2561.0,2560.5,3.2078]
[1748628738369,0.78091,2560.7,2560.6,0.78091]
[1748628738570,0.78092,2560.6,2560.5,7.3788]
[1748628738771,0.7809,2560.7,2560.6,0.7809]
[1748628738967,0.7809,2560.7,2560.5,7.3788]
[1748628738968,0.6774,2561.0,2560.9,0.78083]
[1748628739177,0.7808,2561.0,2560.9,3.98862]
[1748628739381,0.7808,2561.0,2560.9,3.2078]
[1748628741173,0.78086,2560.8,2560.7,0.00585869]
[1748628742376,0.78108,2560.1,2560.0,3.2078]
[1748628743275,0.78117,2559.8,2559.7,3.2078]
[1748628746677,0.78116,2559.9,2559.8,0.78115]
[1748628746973,3.20319,2560.2,2559.9,0.78113]
[1748628746974,0.78113,2560.0,2559.9,0.78113]
[1748628747171,0.78108,2560.2,2560.1,0.78108]
[1748628747377,0.00581894,2560.3,2560.1,3.2078]
[1748628747569,0.78683894,2560.3,2560.2,1.235]
[1748628747971,0.00581894,2560.3,2560.2,2.01605]
[1748628749477,0.78683894,2560.3,2560.2,2.01605]
[1748628750373,0.78105,2560.2,2560.1,3.2078]
[1748628750679,0.78685894,2560.3,2560.2,0.78105]
[1748628751379,0.78105,2560.2,2560.1,5.31396]
[1748628751581,0.78105,2560.2,2560.1,7.3778]
[1748628751873,3.90526,2560.2,2559.5,3.21365869]
[1748628752180,0.78123,2559.6,2559.5,3.21365869]